bitfinex/quotes_ETHUSD_20250525
["timestamp","ask_amount","ask_price","bid_price","bid_amount"]
[1748204234062,8.75196847,2513.9,2513.6,8.0]
[1748204234384,3.97805728,2513.8,2513.6,8.0]
[1748204235897,8.75191328,2513.9,2513.6,8.0]
[1748204236207,3.97819946,2513.7,2513.6,8.0]
[1748204236699,3.97813661,2513.8,2513.6,8.0]
[1748204238406,3.97819946,2513.7,2513.6,8.0]
[1748204241224,8.749,2513.9,2513.1,11.975]
[1748204241394,3.97899092,2513.2,2513.1,8.0]
[1748204242105,3.97914925,2513.1,2513.0,6.01]
[1748204242307,3.97914925,2513.1,2513.0,14.01]
[1748204242980,6.97914925,2513.1,2513.0,14.01]
[1748204243675,6.97374059,2513.1,2513.0,8.0]
[1748204245830,3.0,2513.1,2513.0,8.0]
[1748204246434,6.97914925,2513.1,2513.0,8.0]
[1748204246929,3.0,2513.1,2513.0,8.0]
[1748204247734,3.0,2513.1,2513.0,12.27380992]
[1748204248940,3.0,2513.1,2513.0,16.25311752]
[1748204249141,3.0,2513.1,2513.0,20.22811752]
[1748204249318,8.70129912,2513.7,2513.2,3.97892383]
[1748204249515,4.723,2513.7,2513.5,3.97843562]
[1748204249836,4.723,2513.7,2513.6,8.0]
[1748204254805,4.723,2513.7,2513.6,11.97835773]
[1748204256740,4.723,2513.7,2513.6,8.0]
[1748204257933,4.723,2513.7,2513.6,11.97835773]
[1748204258272,4.723,2513.7,2513.6,8.0]
[1748204265195,4.623,2513.7,2513.6,8.0]
[1748204265891,4.623,2513.7,2513.6,11.97835773]
[1748204266104,4.623,2513.7,2513.6,15.95235773]
[1748204266300,8.56717901,2514.4,2514.2,8.0]
[1748204266482,3.97725012,2514.3,2514.2,8.0]
[1748204266995,9.86617472,2514.5,2514.2,8.0]
[1748204267355,0.37754453,2514.4,2514.2,8.0]
[1748204268395,0.37754453,2514.4,2514.2,8.75232155]
[1748204268600,9.39831616,2514.5,2514.2,8.0]
[1748204269295,8.56701616,2514.5,2514.2,8.0]
[1748204271617,4.59,2514.5,2514.4,8.0]
[1748204271815,5.4713,2514.9,2514.6,8.0]
[1748204271984,4.64,2514.9,2514.8,4.27380992]
[1748204273005,4.64,2514.9,2514.8,8.25026928]
[1748204273179,4.64,2514.9,2514.8,12.27380992]
[1748204273506,4.64,2514.9,2514.8,16.25026928]
[1748204273700,4.64,2514.9,2514.8,20.22326928]
[1748204274094,4.64,2514.9,2514.8,16.24680992]
[1748204275403,4.64,2514.9,2514.8,20.22326928]
[1748204276479,4.64,2514.9,2514.8,16.24680992]
[1748204276678,4.64,2514.9,2514.8,20.22326928]
[1748204277486,0.05,2514.9,2514.8,20.22326928]
[1748204282516,0.05,2514.9,2514.8,16.25026928]
[1748204282702,0.05,2514.9,2514.8,11.972]
[1748204283879,4.02630124,2514.9,2514.8,8.0]
[1748204284318,4.02630124,2514.9,2514.6,3.972]
[1748204284319,3.97671492,2514.7,2514.6,3.972]
[1748204284516,3.97671492,2514.7,2514.4,8.24580992]
[1748204284687,3.97671492,2514.7,2514.5,8.0]
[1748204285378,3.97661807,2514.7,2514.5,8.0]
[1748204286401,3.97653985,2514.8,2514.5,8.0]
[1748204286611,3.97662123,2514.7,2514.5,11.972]
[1748204288121,3.97662123,2514.7,2514.5,8.0]
[1748204288329,3.0,2514.6,2514.5,8.0]
[1748204293535,3.0,2514.6,2514.5,11.972]
[1748204295826,3.97654675,2514.8,2514.5,8.0]
[1748204296031,4.02638089,2514.9,2514.5,11.972]
[1748204296187,4.02638089,2514.9,2514.7,8.0]
[1748204296389,3.97645936,2514.8,2514.7,8.0]
[1748204297418,4.97645936,2514.8,2514.7,8.0]
[1748204300130,1.0,2514.8,2514.7,8.0]
[1748204300912,1.0,2514.8,2514.7,11.97661748]
[1748204301137,0.05,2514.9,2514.8,11.97645936]
[1748204301300,0.05,2514.9,2514.8,16.25026928]
[1748204303235,0.05,2514.9,2514.8,12.27380992]
[1748204304211,0.05,2514.9,2514.8,16.25026928]
[1748204308337,0.05,2514.9,2514.8,12.27380992]
[1748204308538,0.05,2514.9,2514.8,20.22226928]
[1748204310172,0.05,2514.9,2514.8,16.24580992]
[1748204310411,0.05,2514.9,2514.8,12.27380992]
[1748204310554,0.8276,2514.9,2514.8,8.0]
[1748204311253,0.8276,2514.9,2514.8,12.27380992]
[1748204311467,0.05,2514.9,2514.8,12.27380992]
[1748204312496,0.05,2514.9,2514.8,17.08156928]
[1748204312792,0.05,2514.9,2514.8,13.10510992]
[1748204312954,0.05,2514.9,2514.8,12.27380992]
[1748204313473,0.05,2514.9,2514.8,8.0]
[1748204313670,4.80390124,2514.9,2514.8,8.0]
[1748204315705,0.05,2514.9,2514.8,16.25026928]
[1748204317109,0.05,2514.9,2514.8,16.24580992]
[1748204320206,0.05,2514.9,2514.8,12.27380992]
[1748204328137,0.05,2514.9,2514.8,16.25026928]
[1748204332100,0.05,2514.9,2514.8,17.07716928]
[1748204348869,0.05,2514.9,2514.8,21.04816928]
[1748204352243,3.97660412,2514.8,2514.6,2.00810226]
[1748204352445,3.97651919,2514.8,2514.6,2.00810226]
[1748204352674,6.97652778,2514.8,2514.6,10.00810226]
[1748204353181,4.74021748,2514.7,2514.6,2.00810226]
[1748204356679,4.74021748,2514.7,2514.4,8.0]
[1748204357545,4.74021748,2514.7,2514.6,8.0]
[1748204362001,3.97684202,2514.6,2514.4,4.27380992]
[1748204362389,4.74030636,2514.7,2514.4,4.27380992]
[1748204362705,3.0,2514.8,2514.6,4.27380992]
[1748204363074,6.97646302,2514.8,2514.6,12.27380992]
[1748204363273,3.0,2514.8,2514.6,12.27380992]
[1748204363474,6.9764616,2514.8,2514.6,12.27380992]
[1748204363709,3.0,2514.8,2514.6,12.27380992]
[1748204363914,6.97645942,2514.8,2514.6,12.27380992]
[1748204364411,3.0,2514.8,2514.7,11.97661748]
[1748204364614,3.0,2514.8,2514.7,8.0]
[1748204364800,0.05,2514.9,2514.7,8.0]
[1748204364998,0.05,2514.9,2514.8,12.27380992]
[1748204368475,0.05,2514.9,2514.8,20.22226928]
[1748204372178,0.05,2514.9,2514.8,20.77226928]
[1748204374825,0.05,2514.9,2514.8,16.80026928]
[1748204375023,0.05,2514.9,2514.8,20.77226928]
[1748204376315,0.05,2514.9,2514.8,26.78226928]
[1748204385964,0.05,2514.9,2514.8,26.78126928]
[1748204397414,4.453,2515.6,2515.4,11.97551085]
[1748204397593,4.453,2515.6,2515.5,8.0]
[1748204398101,4.453,2515.6,2515.4,16.24932077]
[1748204398285,4.453,2515.6,2515.5,8.0]
[1748204400111,0.7583,2515.7,2515.5,8.0]
[1748204401192,3.97519478,2515.6,2515.5,8.0]
[1748204401386,4.76111797,2515.5,2515.3,8.0]
[1748204401806,0.7857,2515.5,2515.3,8.0]
[1748204403414,0.7857,2515.5,2515.3,11.97566275]
[1748204404430,0.7857,2515.5,2515.3,8.0]
[1748204404603,0.7857,2515.5,2515.3,11.97559773]
[1748204407010,0.7857,2515.5,2515.4,3.97551085]
[1748204407400,0.7857,2515.5,2515.3,11.97558502]
[1748204407737,0.7857,2515.5,2515.4,16.24932077]
[1748204408240,0.7857,2515.7,2515.5,8.0]
[1748204411511,0.7857,2515.7,2515.5,11.97534471]
[1748204411724,0.7857,2515.7,2515.5,8.0]
[1748204412415,0.8357,2515.9,2515.7,8.0]
[1748204412817,0.8357,2515.9,2515.7,11.97498902]
[1748204413014,0.05,2515.9,2515.8,16.24868868]
[1748204414416,0.05,2515.9,2515.8,12.27380992]
[1748204419544,0.05,2515.9,2515.8,16.24868868]
[1748204420246,3.97432578,2516.2,2515.9,8.0]
[1748204421050,3.97432578,2516.2,2515.8,8.24380992]
[1748204421250,3.97432578,2516.2,2515.9,8.0]
[1748204421451,3.97432578,2516.2,2515.8,8.24380992]
[1748204422012,3.97432578,2516.2,2515.9,8.0]
[1748204423571,3.97432578,2516.2,2515.8,8.24380992]
[1748204423877,3.97432578,2516.2,2515.8,4.27380992]
[1748204423878,3.97448697,2516.1,2515.8,4.27380992]
[1748204424012,3.9745475,2516.1,2515.9,3.97]
[1748204424429,3.9745475,2516.1,2515.9,11.97]
[1748204424623,3.9745475,2516.1,2516.0,8.0]
[1748204424825,3.97434425,2516.2,2515.9,11.97]
[1748204425031,3.97434425,2516.2,2516.0,8.0]
[1748204427523,0.7857,2516.3,2516.0,12.27380992]
[1748204427859,4.75983386,2516.3,2516.0,12.27380992]
[1748204428067,3.97401283,2516.4,2516.0,12.27380992]
[1748204428366,3.97401283,2516.4,2516.3,8.0]
[1748204428530,4.73765722,2516.5,2516.3,8.0]
[1748204428728,0.7638,2516.5,2516.3,8.0]
[1748204429065,8.40574196,2516.6,2516.3,8.0]
[1748204429367,8.40573587,2516.6,2516.3,8.0]
[1748204429565,3.97378267,2516.5,2516.3,8.0]
[1748204430153,3.97384843,2516.5,2516.3,8.0]
[1748204430353,8.40563777,2516.6,2516.3,8.0]
[1748204430561,4.73733479,2516.7,2516.5,8.0]
[1748204430874,3.9734573,2516.7,2516.5,8.0]
[1748204431044,3.97371511,2516.6,2516.5,8.0]
[1748204431235,3.97352262,2516.7,2516.5,8.0]
[1748204432001,3.97361519,2516.6,2516.5,8.0]
[1748204432152,3.97352262,2516.7,2516.5,8.0]
[1748204432153,3.9735452,2516.7,2516.5,8.0]
[1748204432341,3.97361519,2516.6,2516.5,8.0]
[1748204436000,3.97354468,2516.7,2516.5,8.0]
[1748204436202,3.97361519,2516.6,2516.5,8.0]
[1748204436371,3.97342573,2516.8,2516.5,8.0]
[1748204436578,4.78702796,2516.9,2516.5,8.0]
[1748204436827,3.97333169,2516.8,2516.5,8.0]
[1748204437670,3.97330657,2516.8,2516.6,4.27380992]
[1748204438103,4.02315038,2516.9,2516.6,4.27380992]
[1748204438297,0.05,2516.9,2516.8,4.27380992]
[1748204438965,0.05,2516.9,2516.8,12.27380992]
[1748204440378,4.02314156,2516.9,2516.8,12.27380992]
[1748204440918,0.05,2516.9,2516.8,12.27380992]
[1748204445979,0.05,2516.9,2516.8,8.0]
[1748204450455,0.05,2516.9,2516.8,16.24710934]
[1748204456365,0.05,2516.9,2516.8,17.06300934]
[1748204459472,0.05,2516.9,2516.8,13.08970992]
[1748204459875,0.05,2516.9,2516.8,12.27380992]
[1748204460092,0.05,2516.9,2516.8,8.0]
[1748204460590,4.02314156,2516.9,2516.8,8.0]
[1748204460777,3.97370245,2516.6,2516.4,6.01]
[1748204460980,3.97377309,2516.5,2516.4,6.01]
[1748204461169,4.74937309,2516.5,2516.4,14.01]
[1748204461563,4.74937309,2516.5,2516.4,8.0]
[1748204462493,3.97409155,2516.3,2516.0,4.27380992]
[1748204462853,3.97401669,2516.4,2516.0,4.27380992]
[1748204463071,3.97401669,2516.4,2516.1,8.0]
[1748204463267,4.74945864,2516.5,2516.1,8.0]
[1748204463470,3.97393628,2516.4,2516.1,8.0]
[1748204464066,5.2446,2516.9,2516.3,8.7535]
[1748204464254,3.97360998,2516.7,2516.4,4.27380992]
[1748204465601,5.2446,2516.9,2516.4,4.27380992]
[1748204465800,9.21779113,2516.9,2516.6,8.0]
[1748204466302,5.2446,2516.9,2516.5,8.0]
[1748204467025,9.2178328,2516.9,2516.5,8.0]
[1748204467208,4.469,2516.9,2516.8,12.27380992]
[1748204467507,8.44214156,2516.9,2516.7,8.0]
[1748204468007,4.469,2516.9,2516.8,12.27380992]
[1748204473319,8.44214156,2516.9,2516.8,8.0]
[1748204479518,8.44214156,2516.9,2516.5,4.27380992]
[1748204479519,0.7559,2516.7,2516.5,4.27380992]
[1748204479921,4.72943863,2516.7,2516.5,4.27380992]
[1748204480647,0.7559,2516.7,2516.4,8.24280992]
[1748204480843,4.72947794,2516.7,2516.4,8.24280992]
[1748204482555,4.72947794,2516.7,2516.4,4.27380992]
[1748204484259,3.97339836,2516.8,2516.4,4.27380992]
[1748204485027,3.97346873,2516.7,2516.4,4.27380992]
[1748204485648,9.22451114,2516.9,2516.7,8.0]
[1748204485875,3.97329942,2516.8,2516.7,8.0]
[1748204486441,4.469,2516.9,2516.7,11.9733797]
[1748204486636,4.469,2516.9,2516.8,16.24710934]
[1748204486842,4.469,2516.9,2516.8,12.27380992]
[1748204487482,4.469,2516.9,2516.8,16.24710934]
[1748204488283,0.05,2516.9,2516.8,16.24710934]
[1748204489381,0.05,2516.9,2516.8,12.27380992]
[1748204490789,0.05,2516.9,2516.8,16.24710934]
[1748204492586,0.05,2516.9,2516.8,12.27380992]
[1748204492758,0.05,2516.9,2516.8,13.02613147]
[1748204492952,0.05,2516.9,2516.8,16.24710934]
[1748204494610,0.05,2516.9,2516.8,12.27380992]
[1748204495414,0.05,2516.9,2516.8,16.24710934]
[1748204498531,0.05,2516.9,2516.8,17.07150934]
[1748204500955,0.7798,2517.7,2516.9,8.0]
[1748204501151,3.97239009,2517.4,2517.2,4.27380992]
[1748204501443,3.97239009,2517.4,2517.3,8.0]
[1748204502645,3.97239009,2517.4,2517.1,8.0]
[1748204502947,3.97261557,2517.3,2517.1,8.0]
[1748204504354,3.97244844,2517.4,2517.1,8.0]
[1748204504554,3.97251133,2517.3,2517.1,8.0]
[1748204505862,3.97241959,2517.4,2517.1,8.0]
[1748204506776,4.406,2517.5,2517.1,8.0]
[1748204506930,4.406,2517.5,2517.3,8.24622261]
[1748204507135,4.406,2517.5,2517.3,8.2462615]
[1748204507369,4.406,2517.5,2517.4,11.97235242]
[1748204507871,4.406,2517.5,2517.4,8.0]
[1748204508673,4.406,2517.5,2517.4,11.97235242]
[1748204509653,4.406,2517.5,2517.4,15.94035242]
[1748204512095,0.05,2517.9,2517.8,4.77372134]
[1748204512234,2.7475,2518.4,2518.3,4.27380992]
[1748204512235,1.9491,2518.4,2518.3,4.27380992]
[1748204512439,1.9491,2518.4,2518.3,12.27380992]
[1748204513356,6.3421,2518.4,2518.3,12.27380992]
[1748204517092,6.3421,2518.4,2518.3,8.0]
[1748204517093,11.11457509,2518.4,2518.3,8.0]
[1748204519586,7.1438,2518.4,2518.3,8.0]
[1748204520373,11.11457509,2518.4,2518.3,8.0]
[1748204522486,3.97093277,2518.3,2517.9,4.27380992]
[1748204522691,3.97117902,2518.2,2518.0,8.0]
[1748204523489,3.97117902,2518.2,2517.9,4.27380992]
[1748204524398,3.97163784,2517.9,2517.5,5.07660992]
[1748204524703,3.967,2517.8,2517.3,4.27380992]
[1748204524890,3.97214254,2517.6,2517.3,4.27380992]
[1748204525245,5.1624,2517.7,2517.3,4.27380992]
[1748204525488,5.1624,2517.7,2517.5,4.27380992]
[1748204525654,4.392,2517.7,2517.5,8.24588271]
[1748204526073,4.392,2517.7,2517.5,4.27380992]
[1748204527016,8.36389623,2517.7,2517.5,4.27380992]
[1748204527234,3.97203686,2517.6,2517.5,4.27380992]
[1748204527412,3.97203686,2517.6,2517.3,4.27380992]
[1748204527614,3.97220915,2517.5,2517.3,4.27380992]
[1748204528391,8.70952427,2517.6,2517.3,4.27380992]
[1748204529502,3.97262244,2517.3,2517.0,4.27380992]
[1748204529672,3.97235242,2517.4,2517.0,4.27380992]
[1748204529673,10.93940139,2517.4,2517.0,4.27380992]
[1748204530182,7.93940139,2517.4,2517.0,4.27380992]
[1748204530695,3.967,2517.4,2517.0,4.27380992]
[1748204530894,7.93946828,2517.4,2517.0,4.27380992]
[1748204531860,7.93944153,2517.4,2517.0,4.27380992]
[1748204532361,3.97252611,2517.3,2517.0,4.27380992]
[1748204532559,4.73397673,2517.2,2516.8,4.6776363]
[1748204532722,4.73397673,2517.2,2516.8,8.65090746]
[1748204532918,3.97260221,2517.3,2516.8,8.65090746]
[1748204533829,3.97267829,2517.2,2516.8,4.6776363]
[1748204534033,3.97304045,2517.0,2516.7,0.8219]
[1748204534228,3.97321412,2516.9,2516.5,4.78986827]
[1748204534465,3.97321412,2516.9,2516.6,4.27380992]
[1748204534769,3.0,2516.8,2516.6,4.27380992]
[1748204535060,6.97340006,2516.8,2516.6,4.27380992]
[1748204535416,0.7612,2516.7,2516.0,2.82420226]
[1748204535620,3.97377102,2516.6,2516.1,4.32380992]
[1748204535848,0.7612,2516.7,2516.1,4.32380992]
[1748204536262,0.7612,2516.7,2516.1,0.05]
[1748204536263,3.97422295,2516.3,2516.1,0.05]
[1748204536560,4.381,2516.2,2516.1,0.05]
[1748204537766,8.35524688,2516.2,2516.1,0.05]
[1748204538071,4.381,2516.2,2516.1,0.05]
[1748204538624,4.381,2516.2,2516.1,4.32380992]
[1748204539034,8.35524688,2516.2,2516.1,4.32380992]
[1748204539235,8.35524688,2516.2,2516.1,0.05]
[1748204539566,4.381,2516.2,2516.1,0.05]
[1748204541672,3.97399712,2516.4,2516.1,0.05]
[1748204541874,8.351,2516.3,2516.1,4.32380992]
[1748204543176,12.32510007,2516.3,2516.1,4.32380992]
[1748204543745,3.97424688,2516.2,2516.1,4.32380992]
[1748204544135,3.97424688,2516.2,2516.1,0.05]
[1748204546708,12.32516223,2516.3,2516.1,0.05]
[1748204548701,8.351,2516.3,2516.1,4.32380992]
[1748204550381,12.3250973,2516.3,2516.1,4.32380992]
[1748204550699,12.32520408,2516.3,2516.1,4.32380992]
[1748204553512,3.97424688,2516.2,2516.1,0.05]
[1748204553709,6.42869198,2516.2,2516.1,0.05]
[1748204554212,18.7025019,2516.2,2516.1,0.05]
[1748204554526,18.7025019,2516.2,2514.8,4.27380992]
[1748204554527,4.80032697,2515.2,2514.8,4.27380992]
[1748204554668,13.15332697,2515.2,2514.8,4.27380992]
[1748204556148,0.8245,2515.2,2514.9,8.0]
[1748204556453,8.353,2515.2,2515.0,4.27380992]
[1748204556749,0.7847,2515.7,2515.1,0.8068]
[1748204557052,3.97535281,2515.5,2515.2,4.27380992]
[1748204557753,12.32823706,2515.6,2515.3,8.0]
[1748204558109,8.353,2515.6,2515.3,8.0]
[1748204559034,4.383,2515.5,2515.4,12.27380992]
[1748204559250,4.383,2515.5,2515.4,16.24932077]
[1748204559412,4.383,2515.5,2515.4,12.27380992]
[1748204560555,7.383,2515.5,2515.4,16.24932077]
[1748204560712,3.0,2515.5,2515.4,17.00612077]
[1748204565764,3.0,2515.5,2515.4,13.03060992]
[1748204565962,3.0,2515.5,2515.4,17.00612077]
[1748204567050,4.384,2515.7,2515.6,3.97519478]
[1748204567366,4.384,2515.7,2515.6,8.2490047]
[1748204567532,4.384,2515.7,2515.6,16.2490047]
[1748204567737,4.384,2515.7,2515.6,12.27380992]
[1748204568759,5.384,2515.7,2515.6,12.27380992]
[1748204569158,5.384,2515.7,2515.6,8.0]
[1748204570080,5.384,2515.7,2515.6,11.97519478]
[1748204571984,5.384,2515.7,2515.6,8.0]
[1748204572418,5.384,2515.7,2515.6,11.97519478]
[1748204574685,5.384,2515.7,2515.6,8.0]
[1748204578701,11.44607259,2515.7,2515.2,6.01]
[1748204578919,3.97541726,2515.5,2515.2,10.28380992]
[1748204579119,3.97541726,2515.5,2515.3,8.0]
[1748204579738,7.94541726,2515.5,2515.3,8.0]
[1748204580029,7.94541726,2515.5,2515.1,4.02598311]
[1748204580030,9.88516271,2515.5,2515.1,8.05]
[1748204580402,3.97551085,2515.4,2515.3,8.0]
[1748204580838,5.91504422,2515.5,2515.3,8.0]
[1748204581175,3.97,2515.4,2515.3,8.0]
[1748204591176,3.971,2515.4,2515.3,8.0]
[1748204593343,3.975289,2515.6,2515.3,8.0]
[1748204593640,8.344,2515.5,2515.3,8.0]
[1748204594000,8.344,2515.5,2515.4,12.27380992]
[1748204595863,12.31935281,2515.5,2515.4,12.27380992]
[1748204596036,8.344,2515.5,2515.4,12.27380992]
[1748204596237,12.31935281,2515.5,2515.4,12.27380992]
[1748204599064,7.0671649,2515.7,2515.5,8.0]
[1748204599065,1.7592,2515.7,2515.5,8.0]
[1748204599267,1.0,2515.7,2515.6,4.27380992]
[1748204599427,1.0,2515.7,2515.6,16.2490047]
[1748204599760,4.361,2515.9,2515.7,11.9750344]
[1748204600069,4.361,2515.9,2515.8,12.27380992]
[1748204602165,4.361,2515.9,2515.8,5.09730992]
[1748204602484,4.361,2515.9,2515.8,9.07218868]
[1748204607551,4.361,2515.9,2515.8,4.27380992]
[1748204616150,0.8228,2515.8,2515.7,8.0]
[1748204616348,3.9754879,2515.5,2515.2,10.28380992]
[1748204616548,4.79837834,2515.4,2515.2,10.28380992]
[1748204616790,8.76837834,2515.4,2515.2,10.28380992]
[1748204616991,8.76837834,2515.4,2515.3,8.0]
[1748204617184,4.7928,2515.4,2515.3,8.0]
[1748204617388,3.97,2515.4,2515.3,8.0]
[1748204617891,3.97,2515.4,2515.3,11.9756689]
[1748204618064,4.361,2515.4,2515.3,11.9756689]
[1748204618262,4.361,2515.4,2515.3,12.7594689]
[1748204618893,4.361,2515.4,2515.3,8.7838]
[1748204619459,4.361,2515.4,2515.3,8.0]
[1748204620087,4.361,2515.4,2515.3,11.9756689]
[1748204620588,4.361,2515.4,2515.3,8.0]
[1748204623160,4.361,2515.4,2515.3,11.9756689]
[1748204623813,0.8228,2515.8,2515.5,8.0]
[1748204623972,4.79978432,2516.1,2515.8,8.0]
[1748204624166,4.361,2516.0,2515.8,8.0]
[1748204624367,4.361,2516.0,2515.9,12.27380992]
[1748204624567,4.7963,2516.1,2516.0,8.0]
[1748204624906,5.1863,2516.1,2516.0,8.0]
[1748204625121,8.332,2516.1,2516.0,8.0]
[1748204625279,4.361,2516.1,2516.0,11.97456279]
[1748204625482,4.361,2516.1,2516.0,8.0]
[1748204625682,4.361,2516.1,2516.0,11.97456279]
[1748204627122,4.361,2516.1,2516.0,12.37138881]
[1748204628126,4.349,2516.2,2516.0,12.37138881]
[1748204628331,4.349,2516.2,2516.1,4.27380992]
[1748204629211,3.9740017,2516.4,2516.1,4.27380992]
[1748204629533,4.349,2516.3,2516.1,4.27380992]
[1748204630025,4.79916577,2516.5,2516.1,4.27380992]
[1748204630217,4.349,2516.3,2516.1,4.27380992]
[1748204631264,4.349,2516.2,2516.1,4.27380992]
[1748204632451,4.349,2516.2,2516.1,8.24821475]
[1748204632662,4.79913489,2516.5,2516.2,3.97416376]
[1748204632663,3.97,2516.5,2516.2,3.97416376]
[1748204632946,4.349,2516.4,2516.2,3.97416376]
[1748204633352,4.349,2516.4,2516.3,4.27380992]
[1748204635533,4.349,2516.4,2516.3,8.24784399]
[1748204635738,4.349,2516.4,2516.3,4.27380992]
[1748204636727,4.349,2516.4,2516.3,12.27380992]
[1748204639429,4.33687633,2516.4,2516.3,12.27380992]
[1748204643418,4.349,2516.5,2516.4,11.97383175]
[1748204643620,4.349,2516.5,2516.4,16.24764167]
[1748204650096,12.925,2516.7,2516.6,11.97361519]
[1748204650252,12.925,2516.7,2516.6,17.03922511]
[1748204651377,12.925,2516.7,2516.6,12.27380992]
[1748204651684,13.6927,2516.7,2516.4,12.27380992]
[1748204653040,13.6927,2516.7,2516.4,16.24773188]
[1748204653256,13.6927,2516.7,2516.6,12.27380992]
[1748204653431,12.925,2516.7,2516.6,12.27380992]
[1748204654848,4.348,2516.7,2516.6,12.27380992]
[1748204655351,4.348,2516.7,2516.6,16.24742511]
[1748204657279,4.348,2516.7,2516.6,12.27380992]
[1748204657738,4.348,2516.7,2516.6,16.24742511]
[1748204657928,3.97289004,2517.1,2516.7,8.0]
[1748204658253,12.27799626,2517.0,2516.7,8.0]
[1748204659135,8.30899626,2517.0,2516.7,8.0]
[1748204659336,3.969,2516.9,2516.7,8.0]
[1748204662738,3.97359139,2516.7,2516.5,8.0]
[1748204663074,4.73461372,2516.8,2516.5,8.0]
[1748204663445,3.97353955,2516.7,2516.5,8.0]
[1748204663651,7.94253231,2516.7,2516.5,8.0]
[1748204664771,3.969,2516.7,2516.5,8.0]
[1748204667070,4.336,2516.6,2516.5,8.0]
[1748204672302,3.97305828,2517.0,2516.7,8.0]
[1748204672303,0.7574,2517.0,2516.7,8.0]
[1748204672511,8.305,2516.9,2516.7,12.27380992]
[1748204674571,4.336,2516.9,2516.7,12.27380992]
[1748204674899,3.969,2516.8,2516.7,12.27380992]
[1748204676313,3.969,2516.8,2516.7,8.0]
[1748204677220,7.94229942,2516.8,2516.7,8.0]
[1748204677405,7.94242316,2516.8,2516.4,8.0]
[1748204678577,7.94242316,2516.8,2516.4,11.97391765]
[1748204678779,3.969,2516.8,2516.5,8.24757779]
[1748204681284,3.969,2516.8,2516.5,4.27380992]
[1748204681511,3.97288681,2517.1,2516.7,4.27380992]
[1748204681714,8.305,2517.0,2516.9,16.24691205]
[1748204681911,8.305,2517.0,2516.9,12.27380992]
[1748204682150,3.969,2517.1,2517.0,8.0]
[1748204682460,4.336,2517.0,2516.9,11.97304639]
[1748204683016,4.336,2517.0,2516.9,8.0]
[1748204692377,4.336,2517.0,2516.9,11.97314156]
[1748204692544,4.336,2517.0,2516.9,8.0]
[1748204699366,13.03068371,2517.0,2516.9,8.0]
[1748204700681,13.40953028,2517.0,2516.9,8.0]
[1748204700884,13.40953028,2517.0,2516.4,8.42193137]
[1748204700885,0.7527,2516.9,2516.3,6.01]
[1748204701081,3.97372841,2516.6,2516.3,6.01]
[1748204701267,3.969,2516.5,2516.4,8.0]
[1748204702639,4.79706267,2516.8,2516.4,11.97393101]
[1748204702776,25.51757249,2517.8,2516.4,11.97393101]
[1748204702777,4.324,2516.5,2516.4,11.97393101]
[1748204702976,3.969,2516.7,2516.6,8.0]
[1748204703211,8.293,2516.7,2516.6,16.24734534]
[1748204703393,4.324,2516.8,2516.6,16.24734534]
[1748204703596,4.324,2516.8,2516.6,12.27380992]
[1748204703878,4.324,2516.8,2516.7,11.9734573]
[1748204704083,0.47087472,2517.5,2517.3,8.0]
[1748204704279,4.325,2517.4,2517.2,3.97255055]
[1748204704479,4.325,2517.4,2517.3,4.27380992]
[1748204704681,4.325,2517.4,2517.3,4.66323266]
[1748204706320,4.325,2517.4,2517.3,4.27380992]
[1748204711314,4.325,2517.4,2517.3,12.27380992]
[1748204711484,4.325,2517.4,2517.3,16.24632014]
[1748204711985,4.325,2517.4,2517.3,12.27380992]
[1748204714627,4.325,2517.4,2517.3,12.67583651]
[1748204714827,4.325,2517.4,2517.3,12.27380992]
[1748204716334,4.325,2517.4,2517.3,16.24632014]
[1748204718140,4.325,2517.4,2517.3,17.40287091]
[1748204718438,4.325,2517.4,2517.3,21.37087091]
[1748204721250,4.325,2517.4,2517.3,8.40005077]
[1748204722130,4.325,2517.4,2517.3,12.67386069]
[1748204722440,4.325,2517.4,2517.3,13.42618224]
[1748204722646,4.325,2517.4,2517.3,12.67386069]
[1748204723045,4.325,2517.4,2517.3,12.27380992]
[1748204725254,4.325,2517.4,2517.3,12.66729078]
[1748204726139,4.325,2517.4,2517.3,8.0]
[1748204729760,4.325,2517.4,2517.3,16.24632014]
[1748204729928,4.325,2517.4,2517.3,16.64942115]
[1748204732759,4.325,2517.4,2517.3,17.40622115]
[1748204734830,4.313,2517.7,2517.4,11.97231848]
[1748204736062,4.313,2517.7,2517.6,8.0]
[1748204736433,4.313,2517.7,2517.4,11.97226386]
[1748204736634,4.313,2517.7,2517.6,8.0]
[1748204737568,4.313,2517.7,2517.4,11.97219713]
[1748204737771,8.28492514,2517.7,2517.4,8.0]
[1748204737970,4.313,2517.7,2517.4,8.0]
[1748204738660,4.313,2517.7,2517.4,11.97231321]
[1748204739177,4.313,2517.7,2517.4,8.0]
[1748204739373,8.75675724,2517.6,2517.3,8.40310101]
[1748204739683,3.97226141,2517.5,2517.3,8.40310101]
[1748204739974,8.75678778,2517.6,2517.3,8.40310101]
[1748204740163,4.7847,2517.6,2517.3,8.40310101]
[1748204740470,8.7567402,2517.6,2517.3,8.40310101]
[1748204740676,4.7847,2517.6,2517.3,8.40310101]
[1748204741470,3.97220619,2517.5,2517.3,8.40310101]
[1748204741671,8.75677365,2517.6,2517.3,8.40310101]
[1748204741837,8.75687627,2517.6,2517.3,8.0]
[1748204743403,0.8167,2517.6,2517.5,8.0]
[1748204743550,4.313,2517.7,2517.6,3.97191979]
[1748204743752,4.313,2517.7,2517.6,16.24572971]